bitfinex-derivatives/quotes_SOLF0:USTF0_20250127
["timestamp","ask_amount","ask_price","bid_price","bid_amount"]
[1738016993725,0.02849668,234.32,234.28,4.30062958]
[1738016997826,0.02849668,234.32,234.28,0.03122958]
[1738016998427,0.02849668,234.32,234.3,4.2689]
[1738016998627,0.02849668,234.32,234.31,6.70049684]
[1738016999232,0.02849668,234.32,234.31,10.96939684]
[1738017000927,6.70049684,234.43,234.31,6.70049684]
[1738017001235,6.70049684,234.51,234.41,6.70049684]
[1738017001623,6.70049684,234.51,234.44,4.2665]
[1738017001830,6.70049684,234.51,234.43,6.70049684]
[1738017002029,0.02800401,234.48,234.44,0.03181838]
[1738017002227,0.02800401,234.48,234.47,10.96649684]
[1738017002435,17.69028844,234.55,234.47,6.70049684]
[1738017002733,17.69028844,234.55,234.52,6.70049684]
[1738017002934,4.2638,234.59,234.52,6.70049684]
[1738017003230,5.89676281,234.62,234.56,6.70049684]
[1738017003629,0.02796276,234.61,234.57,4.29338407]
[1738017003830,0.02796276,234.61,234.58,6.70049684]
[1738017004728,0.02796276,234.61,234.6,6.70049684]
[1738017005031,6.70049684,234.73,234.6,6.70049684]
[1738017005334,6.70049684,234.75,234.65,6.70049684]
[1738017005635,6.70049684,234.75,234.67,6.70049684]
[1738017006227,0.02887814,234.73,234.71,6.70049684]
[1738017006535,5.89676281,234.84,234.7,4.2616]
[1738017006737,0.02770877,234.74,234.7,4.29084612]
[1738017007035,5.89676281,234.84,234.7,4.29084612]
[1738017007332,5.89676281,234.84,234.72,10.45145447]
[1738017007531,5.68968281,234.84,234.72,10.45145447]
[1738017008539,4.2584,234.89,234.77,4.2604]
[1738017008930,10.45145447,234.92,234.76,10.47931347]
[1738017009134,4.2588,234.87,234.76,10.47931347]
[1738017009338,4.2588,234.87,234.76,10.45145447]
[1738017009540,10.45145447,234.92,234.82,0.02686023]
[1738017009939,4.2584,234.89,234.82,0.02686023]
[1738017010938,4.2586,234.88,234.82,0.02686023]
[1738017012640,10.45145447,234.92,234.82,0.02686023]
[1738017014140,4.2588,234.87,234.82,0.02686023]
[1738017016848,4.2589,234.86,234.82,0.02686023]
[1738017018550,4.2587,234.88,234.82,0.02686023]
[1738017019147,4.2587,234.87,234.82,0.02686023]
[1738017020350,4.2589,234.86,234.82,0.02686023]
[1738017022752,4.2591,234.85,234.82,0.02686023]
[1738017023353,4.2594,234.84,234.82,0.02686023]
[1738017024752,4.2589,234.86,234.82,0.02686023]
[1738017025747,4.2593,234.84,234.82,0.02686023]
[1738017028060,10.45145447,234.88,234.82,0.02686023]
[1738017028356,10.45145447,234.84,234.82,6.023e-05]
[1738017028550,10.9493911,234.83,234.82,6.023e-05]
[1738017033964,6.6899911,234.83,234.68,6.6899911]
[1738017034164,6.6899911,234.78,234.68,6.6899911]
[1738017034368,6.6899911,234.81,234.71,6.6899911]
[1738017034567,6.6899911,234.81,234.72,1.4373]
[1738017035068,0.03182175,234.79,234.74,0.03219631]
[1738017035659,4.2609,234.75,234.74,0.03219631]
[1738017040065,4.2609,234.75,234.74,9.631e-05]
[1738017043873,10.9508911,234.75,234.74,9.631e-05]
[1738017050071,4.263,234.63,234.59,6.6899911]
[1738017050573,4.263,234.63,234.59,10.9537911]
[1738017051178,4.2899995,234.63,234.59,10.98626937]
[1738017051576,0.0269995,234.63,234.59,6.72246937]
[1738017051974,4.2636,234.6,234.59,0.03247827]
[1738017055074,4.264,234.58,234.57,185.6714]
[1738017055475,6.6899911,234.6,234.5,6.6899911]
[1738017055876,4.2647,234.55,234.51,4.2651]
[1738017056176,4.29217611,234.55,234.51,4.2651]
[1738017056376,4.29217611,234.55,234.51,0.03046534]
[1738017056779,4.2647,234.54,234.51,0.03046534]
[1738017060279,4.2649,234.53,234.51,0.03046534]
[1738017060480,0.02747611,234.55,234.51,0.03046534]
[1738017061183,4.265,234.52,234.51,0.03046534]
[1738017062081,4.2661,234.47,234.44,6.6899911]
[1738017062377,6.6899911,234.52,234.42,6.6899911]
[1738017062581,6.6899911,234.5,234.4,6.6899911]
[1738017062875,6.6899911,234.48,234.38,8.0715911]
[1738017063083,0.03132032,234.45,234.41,0.03177332]
[1738017063274,4.2669,234.42,234.41,0.03177332]
[1738017063676,10.9568911,234.42,234.41,0.03177332]
[1738017063876,4.2677,234.38,234.36,185.6714]
[1738017064076,4.2677,234.38,234.32,6.6899911]
[1738017064773,6.6899911,234.4,234.32,6.6899911]
[1738017064974,2.5333,234.56,234.32,6.6899911]
[1738017064975,0.02945917,234.37,234.33,0.03069928]
[1738017065176,6.6899911,234.42,234.32,6.6899911]
[1738017065382,0.02808388,234.37,234.36,6.6899911]
[1738017065683,6.6899911,234.46,234.36,6.6899911]
[1738017065876,0.02757728,234.39,234.36,6.6899911]
[1738017066483,0.02757728,234.39,234.38,4.2676]
[1738017067484,0.02757728,234.39,234.36,6.6899911]
[1738017067681,6.6899911,234.48,234.38,6.6899911]
[1738017067887,6.6899911,234.5,234.4,6.6899911]
[1738017068077,6.6899911,234.48,234.39,1.399]
[1738017068283,4.2661,234.46,234.39,5.6662]
[1738017068482,6.6899911,234.48,234.39,5.6662]
[1738017068783,10.482151,234.51,234.39,1.399]
[1738017068984,0.02875517,234.46,234.41,0.03220535]
[1738017070881,4.2669,234.42,234.41,0.03220535]
[1738017071481,0.02875517,234.46,234.41,0.03220535]
[1738017071689,4.2665,234.44,234.41,0.03220535]
[1738017072188,4.2668,234.43,234.41,0.03220535]
[1738017072387,0.02875517,234.46,234.41,0.03220535]
[1738017074188,4.2666,234.44,234.41,0.03220535]
[1738017074591,0.02875517,234.46,234.43,4.2666]
[1738017074891,0.02875517,234.46,234.41,0.03220535]
[1738017075990,0.02875517,234.46,234.43,4.2666]
[1738017082095,0.02875517,234.46,234.45,4.2663]
[1738017082298,0.02875517,234.46,234.41,10.51435635]
[1738017083293,10.482151,234.57,234.41,10.51435635]
[1738017083494,10.482151,234.57,234.41,10.482151]
[1738017084090,4.2654,234.51,234.45,4.2662]
[1738017084295,4.29544715,234.51,234.47,0.03238975]
[1738017085797,0.03004715,234.51,234.47,4.29828975]
[1738017087596,4.29534715,234.51,234.47,4.29828975]
[1738017090402,0.03004715,234.51,234.47,0.03238975]
[1738017091108,4.2658,234.49,234.47,0.03238975]
[1738017091311,6.70498251,234.5,234.47,0.03238975]
[1738017091510,6.70498251,234.48,234.47,0.03238975]
[1738017091809,10.97078251,234.48,234.47,0.03238975]
[1738017093311,4.2658,234.48,234.47,0.03238975]
[1738017094713,4.2658,234.49,234.47,0.03238975]
[1738017098424,4.2658,234.48,234.47,0.03238975]
[1738017107425,0.03004715,234.51,234.47,0.03238975]
[1738017107622,0.03004715,234.51,234.48,6.70498251]
[1738017108023,0.03004715,234.51,234.5,4.2654]
[1738017112621,0.03004715,234.51,234.48,8.07948251]
[1738017112820,0.03004715,234.51,234.48,1.3745]
[1738017113827,0.03004715,234.51,234.48,5.6403]
[1738017115425,6.70498251,234.49,234.35,21.17781883]
[1738017115620,6.70498251,234.41,234.35,9.56916798]
[1738017116023,6.70498251,234.41,234.3,6.70498251]
[1738017116621,0.02905766,234.38,234.33,0.02895668]
[1738017116830,10.4890249,234.44,234.27,10.4890249]
[1738017117025,0.02688512,234.38,234.33,0.02776606]
[1738017117630,4.268,234.36,234.33,0.02776606]
[1738017118028,0.02688512,234.38,234.33,0.02776606]
[1738017118831,4.268,234.36,234.33,0.02776606]
[1738017119431,4.2682,234.35,234.33,0.02776606]
[1738017121733,0.02688512,234.38,234.33,0.02776606]
[1738017121933,4.2683,234.34,234.33,0.02776606]
[1738017122628,4.29468512,234.38,234.33,4.29616606]
[1738017122933,0.02688512,234.38,234.33,0.02776606]
[1738017123431,0.02688512,234.38,234.36,4.2678]
[1738017123826,10.4890249,234.48,234.33,0.02776606]
[1738017124029,4.2661,234.47,234.4,4.2671]
[1738017124234,10.4890249,234.56,234.39,10.4890249]
[1738017124536,10.4890249,234.56,234.39,196.1604249]
[1738017125030,0.02733498,234.5,234.45,0.02959056]
[1738017126126,10.4890249,234.6,234.45,0.02959056]
[1738017126327,10.4890249,234.6,234.44,2.7613]
[1738017127029,4.2644,234.56,234.49,4.2655]
[1738017127234,0.0327961,234.54,234.5,0.02996993]
[1738017127831,0.0327961,234.54,234.5,4.29536993]
[1738017128834,0.0327961,234.54,234.5,0.02996993]
[1738017129031,4.2974961,234.54,234.5,0.02996993]
[1738017129228,0.0327961,234.54,234.5,0.02996993]
[1738017131239,0.0327961,234.54,234.5,4.29536993]
[1738017131637,0.0327961,234.54,234.5,0.02996993]
[1738017131939,0.0327961,234.54,234.53,4.2649]
[1738017132740,4.2637,234.6,234.54,4.2647]
[1738017133241,10.4890249,234.64,234.5,0.02996993]
[1738017133431,10.4890249,234.64,234.5,185.70136993]
[1738017133832,0.02878825,234.59,234.55,4.2644]
[1738017134239,0.02878825,234.59,234.55,0.03089491]
[1738017135142,0.02878825,234.59,234.55,4.29539491]
[1738017135536,0.02878825,234.59,234.58,4.264]
[1738017135934,10.4890249,234.68,234.56,1.4114]
[1738017136141,10.4890249,234.68,234.56,2.7912]
[1738017136744,16.14780973,234.72,234.56,2.7912]
[1738017137341,0.02058621,234.66,234.62,0.03205149]
[1738017137842,0.02058621,234.66,234.65,4.2627]
[1738017138845,0.02058621,234.66,234.62,0.03205149]
[1738017139143,0.02058621,234.66,234.63,4.2629]
[1738017142646,0.02058621,234.66,234.64,4.2629]
[1738017143545,0.02058621,234.66,234.65,4.2627]
[1738017144147,5.65878483,234.72,234.67,4.2622]
[1738017144344,5.65878483,234.72,234.61,10.4890249]
[1738017145049,10.4890249,234.79,234.61,10.4890249]
[1738017145248,4.2614,234.73,234.64,0.02796459]
[1738017145440,4.2614,234.73,234.61,196.1604249]
[1738017145645,4.2614,234.73,234.66,0.03006309]
[1738017146143,4.2614,234.73,234.67,4.2623]
[1738017149551,10.4890249,234.74,234.66,0.03006309]
[1738017149752,4.2623,234.67,234.66,0.03006309]
[1738017151050,4.2623,234.67,234.66,6.309e-05]
[1738017152446,0.03,234.69,234.5,2.6943]
[1738017152751,15.5631249,234.72,234.5,2.6943]
[1738017152752,10.4890249,234.64,234.5,2.6943]
[1738017153753,0.02688409,234.59,234.55,0.0269721]
[1738017154553,0.02688409,234.59,234.49,185.6714]
[1738017155652,4.2647,234.55,234.49,189.9369]
[1738017155854,4.2647,234.55,234.52,0.03222715]
[1738017156048,0.02688409,234.59,234.52,0.03222715]
[1738017157055,4.2649,234.54,234.52,0.03222715]
[1738017158055,0.02688409,234.59,234.52,0.03222715]
[1738017159152,4.29078409,234.59,234.53,4.2648]
[1738017159947,4.264,234.58,234.52,0.03222715]
[1738017161054,4.264,234.58,234.52,4.29722715]
[1738017164652,4.264,234.58,234.53,4.2648]
[1738017165554,0.02688409,234.59,234.53,5.6977]
[1738017166049,0.02688409,234.59,234.53,197.5933249]
[1738017166252,43.41462121,234.7,234.54,2.7881]
[1738017166450,43.41462121,234.7,234.57,10.4890249]
[1738017166654,4.2623,234.67,234.57,10.4890249]
[1738017167053,10.4890249,234.76,234.57,10.4890249]
[1738017167252,10.4890249,234.76,234.61,10.4890249]
[1738017167458,0.0269739,234.67,234.63,0.03150157]
[1738017168559,0.0269739,234.67,234.66,4.2625]
[1738017168862,0.0269739,234.67,234.63,0.03150157]
[1738017174861,0.0269739,234.67,234.63,4.29440157]
[1738017175062,0.0269739,234.67,234.63,0.03150157]
[1738017175959,0.0269739,234.67,234.64,4.2628]
[1738017177763,0.0269739,234.67,234.63,0.03150157]
[1738017179262,0.0269739,234.67,234.65,10.4890249]
[1738017179559,0.0269739,234.67,234.66,4.2625]
[1738017180565,1.3144,234.79,234.65,10.4890249]
[1738017180967,4.2616,234.71,234.65,14.7516249]
[1738017181167,1.3144,234.79,234.65,14.7516249]
[1738017181475,1.3144,234.79,234.63,0.03150157]
[1738017181769,4.2629,234.64,234.63,0.03150157]
[1738017183469,4.2642,234.57,234.54,185.6714]
[1738017183672,10.4890249,234.66,234.49,21.1781751]
[1738017183868,10.4890249,234.66,234.49,9.55836517]
[1738017184465,10.4890249,234.62,234.48,11.8486249]
[1738017184669,0.0295658,234.6,234.55,0.02995425]
[1738017185269,4.2643,234.56,234.55,0.02995425]
[1738017185471,10.4890249,234.58,234.44,10.4890249]
[1738017185866,4.2654,234.5,234.42,4.2668]
[1738017186067,10.4890249,234.58,234.42,4.2668]
[1738017186273,10.4890249,234.54,234.42,4.2668]
[1738017186772,0.03227979,234.5,234.46,0.02923499]
[1738017187074,4.2656,234.49,234.46,0.02923499]
[1738017188171,0.03227979,234.5,234.46,0.02923499]
[1738017188569,4.266,234.47,234.46,0.02923499]
[1738017189374,4.2665,234.45,234.37,1.3057]
[1738017189771,4.2665,234.44,234.37,5.5735]
[1738017190178,10.4890249,234.52,234.34,187.0564]
[1738017190374,4.2671,234.41,234.34,191.3247]
[1738017190677,4.2671,234.41,234.38,0.02930023]
[1738017191377,4.2669,234.42,234.38,0.02930023]
[1738017192073,0.03120106,234.43,234.38,4.29690023]
[1738017196182,0.03120106,234.43,234.39,4.2672]
[1738017196776,0.03120106,234.43,234.4,4.2671]
[1738017197082,0.03120106,234.43,234.38,0.02930023]
[1738017197979,0.03120106,234.43,234.41,4.267]
[1738017199077,0.03120106,234.43,234.38,0.02930023]
[1738017199280,0.03120106,234.43,234.42,4.2669]
[1738017203492,4.265,234.53,234.4,10.4890249]
[1738017203690,4.265,234.53,234.4,196.1604249]
[1738017203888,0.20205,234.55,234.4,196.1604249]
[1738017204090,0.20205,234.55,234.44,10.4890249]
[1738017204485,4.2655,234.5,234.47,0.03139405]
[1738017204793,0.02795499,234.52,234.47,0.03139405]
[1738017205793,4.2654,234.5,234.47,0.03139405]
[1738017206687,0.02795499,234.52,234.47,0.03139405]
[1738017206887,4.29315499,234.52,234.47,0.03139405]
[1738017208794,4.2654,234.51,234.47,0.03139405]
[1738017213994,4.2658,234.48,234.47,0.03139405]
[1738017215196,10.4890249,234.48,234.32,10.4890249]
[1738017215391,10.4890249,234.48,234.3,185.6714]
[1738017215392,10.4890249,234.44,234.3,187.0304]
[1738017215794,4.2678,234.37,234.3,187.0304]
[1738017216191,0.03060472,234.36,234.31,0.02683696]
[1738017216398,0.03060472,234.36,234.31,4.29553696]
[1738017216600,4.29870472,234.36,234.31,0.02683696]
[1738017216800,0.03060472,234.36,234.31,0.02683696]
[1738017217000,10.51962962,234.36,234.31,0.02683696]
[1738017217198,10.51962962,234.36,234.31,3.696e-05]
[1738017217395,4.2687,234.32,234.31,3.696e-05]
[1738017220399,10.51962962,234.36,234.31,3.696e-05]
[1738017220903,4.2686,234.33,234.31,3.696e-05]
[1738017222201,4.2687,234.32,234.31,3.696e-05]
[1738017233507,10.4890249,234.33,234.21,185.6714]
[1738017233709,10.4890249,234.29,234.17,1.3461]
[1738017234810,0.02755122,234.25,234.21,0.02910323]
[1738017235206,4.2705,234.23,234.21,0.02910323]
[1738017236006,0.02755122,234.25,234.21,0.02910323]
[1738017237210,4.29765122,234.25,234.21,0.02910323]
[1738017237410,0.02755122,234.25,234.21,0.02910323]
[1738017237810,4.2702,234.24,234.21,0.02910323]
[1738017244725,6.72062107,234.31,234.23,6.72062107]
[1738017244926,6.72062107,234.37,234.27,6.72062107]
[1738017245226,6.72062107,234.39,234.32,4.2687]
[1738017245428,6.72062107,234.41,234.31,6.72062107]
[1738017246028,0.03190748,234.38,234.34,0.02730134]
[1738017247828,0.03190748,234.38,234.35,4.268]
[1738017248328,10.48842429,234.47,234.38,4.2675]
[1738017248529,7.98752955,234.51,234.38,4.2675]
[1738017248530,10.48842429,234.5,234.38,4.2675]
[1738017248921,4.2661,234.47,234.4,4.2672]
[1738017249124,10.48842429,234.5,234.4,4.2672]
[1738017249324,10.48842429,234.5,234.35,2.6886]
[1738017249625,4.2665,234.44,234.43,0.02865227]
[1738017250028,0.02973238,234.47,234.43,0.02865227]
[1738017252129,4.2664,234.45,234.43,0.02865227]
[1738017258133,4.29583238,234.47,234.43,0.02865227]
[1738017258337,0.02973238,234.47,234.43,0.02865227]
[1738017259139,4.2663,234.46,234.43,0.02865227]
[1738017259836,4.2665,234.45,234.43,0.02865227]
[1738017260238,0.02973238,234.47,234.43,0.02865227]
[1738017260436,0.02973238,234.47,234.44,4.2665]
[1738017261437,0.02973238,234.47,234.43,0.02865227]
[1738017261641,0.02973238,234.47,234.46,4.2661]
[1738017262338,5.66259185,234.57,234.43,0.02865227]
[1738017262642,5.66259185,234.57,234.43,185.70005227]
[1738017262842,5.66259185,234.57,234.52,4.2649]
[1738017263636,0.03144536,234.56,234.52,4.2649]
[1738017266243,0.03144536,234.56,234.51,0.03059113]
[1738017267144,4.29574536,234.56,234.51,0.03059113]
[1738017267544,10.48842429,234.64,234.51,1.45139113]
[1738017267745,154.59483373,235.0,234.69,25.68]
[1738017268046,5.66380782,235.06,234.99,20.97684858]
[1738017268346,283.71515575,235.09,235.05,10.48842429]
[1738017268546,283.71515575,235.09,235.08,6.66602765]
[1738017269141,1.72,235.15,235.08,81.46639778]
[1738017269348,1.72,235.15,235.11,6.66602765]
[1738017269649,6.66602765,235.13,235.08,74.80037013]
[1738017269850,1.72,235.15,235.1,6.66602765]
[1738017270251,1.72,235.15,235.1,11.82019691]
[1738017270449,3.24,235.32,235.11,19.26381109]
[1738017270746,5.2991,235.31,235.28,172.1088972]
[1738017270950,5.2991,235.31,235.11,19.26381109]
[1738017270951,16.66956984,235.29,235.19,0.03003465]
[1738017271249,19.90956984,235.32,235.22,0.03265598]
[1738017271250,16.66956984,235.26,235.22,0.03265598]
[1738017271448,4.43858679,235.43,235.21,5.15344883]
[1738017271748,4.43858679,235.43,235.23,20.36312495]
[1738017271749,16.66956984,235.25,235.23,20.36312495]
[1738017271949,16.66956984,235.24,235.23,11.02069863]
[1738017272350,16.97732892,235.25,235.23,11.02069863]
[1738017272548,16.97732892,235.25,235.1,4.2545]
[1738017272747,16.97732892,235.25,235.22,0.03154168]
[1738017272953,16.97732892,235.25,235.08,71.22808953]
[1738017273153,3.24,235.29,235.08,71.22808953]
[1738017273356,16.97732892,235.18,235.08,71.22808953]
[1738017273647,16.97732892,235.19,235.08,71.22808953]
[1738017274456,16.97732892,235.19,235.11,0.03278314]
[1738017275248,16.95732892,235.19,235.11,0.03278314]
[1738017275449,3.24,235.25,235.11,0.03278314]
[1738017275651,16.97732892,235.22,235.11,0.03278314]
[1738017275849,16.97732892,235.22,235.08,71.22808953]
[1738017276054,16.97732892,235.22,235.14,0.02762619]
[1738017276247,21.22972892,235.22,235.14,0.02762619]
[1738017276446,20.21732892,235.29,235.14,0.02762619]
[1738017276447,16.97732892,235.21,235.14,0.02762619]
[1738017276655,3.24,235.29,235.08,71.22808953]
[1738017276956,16.97732892,235.23,235.15,0.03240142]
[1738017277157,4.2524,235.22,235.15,0.03240142]
[1738017277457,16.97732892,235.23,235.15,0.03240142]
[1738017277652,16.97732892,235.23,235.16,71.22808953]
[1738017278250,16.97732892,235.24,235.16,71.22808953]
[1738017278758,4.2529,235.2,235.18,0.02879322]
[1738017278959,4.2529,235.2,235.16,71.22808953]
[1738017279158,4.2529,235.2,235.17,0.02699497]
[1738017279659,4.253,235.19,235.17,0.02699497]
[1738017279861,45.86664997,235.37,235.17,0.02699497]
[1738017280062,16.97732892,235.21,235.16,71.22808953]
[1738017280461,4.2532,235.18,235.16,69.10312607]
[1738017281060,16.97732892,235.2,235.16,69.10312607]
[1738017281451,16.97732892,235.2,235.16,238.70968226]
[1738017281861,4.2532,235.18,235.16,238.70968226]
[1738017282862,16.97732892,235.21,235.16,238.70968226]
[1738017283564,4.2532,235.18,235.16,238.70968226]
[1738017283764,16.97732892,235.21,235.16,238.70968226]
[1738017283964,16.97732892,235.22,235.16,238.70968226]
[1738017284161,4.2533,235.17,235.16,238.70968226]
[1738017287865,4.2533,235.17,235.16,224.01918226]
[1738017288167,4.2533,235.17,235.16,216.94508226]
[1738017288467,2.844,235.28,235.16,216.94508226]
[1738017288667,4.2533,235.17,235.16,216.94508226]
[1738017288870,1.3097,235.26,235.16,216.94508226]
[1738017289462,4.2533,235.17,235.16,216.94508226]
[1738017290565,4.2533,235.17,235.16,169.63919273]
[1738017290767,16.97945392,235.25,235.16,169.63919273]
[1738017290969,10.41938198,235.23,235.16,169.63919273]
[1738017291366,10.41938198,235.23,235.16,0.03263654]
[1738017292071,4.2533,235.17,235.16,0.03263654]
[1738017295871,10.41938198,235.27,235.16,0.03263654]
[1738017297774,4.2533,235.17,235.16,0.03263654]
[1738017298780,10.41938198,235.27,235.16,0.03263654]
[1738017299572,4.2533,235.17,235.16,0.03263654]
[1738017300180,4.2533,235.17,235.16,4.24576327]
[1738017300479,4.2533,235.17,235.16,0.03263654]
[1738017300682,4.2533,235.17,235.16,3.654e-05]
[1738017300979,4.2533,235.17,235.16,1.416e-05]
[1738017301180,4.2538,235.14,235.13,3.58414436]
[1738017301380,4.2538,235.14,235.13,10.33713954]
[1738017301576,4.2538,235.14,235.13,6.75299518]
[1738017302082,4.2543,235.11,235.1,169.60655619]
[1738017302378,4.2543,235.11,235.1,176.29267505]
[1738017302580,4.2543,235.11,235.1,179.89109214]
[1738017303280,4.2543,235.11,235.1,213.66079767]
[1738017305184,4.2543,235.11,235.1,206.97467881]
[1738017305383,0.02806403,235.16,235.1,37.36812262]
[1738017305978,4.2537,235.15,235.11,3.59841709]
[1738017306180,0.02806403,235.16,235.11,3.59841709]
[1738017306881,4.2536,235.15,235.12,3.59841709]
[1738017307181,0.02806403,235.16,235.15,176.79793879]
[1738017307375,4.28146403,235.16,235.15,162.00463879]
[1738017307680,4.28146403,235.16,235.15,133.51623879]
[1738017308083,4.28146403,235.16,235.15,137.11465588]
[1738017308776,4.28146403,235.16,235.15,178.11132655]
[1738017311889,10.41938198,235.19,235.15,178.11132655]
[1738017312487,10.41938198,235.19,235.16,14.59168016]
[1738017312788,4.2533,235.17,235.16,14.59168016]
[1738017312986,4.2533,235.17,235.16,18.6758543]
[1738017313282,4.2533,235.17,235.16,4.08417414]
[1738017313792,10.41938198,235.19,235.16,4.08603872]
[1738017313988,10.41938198,235.19,235.17,4.08603872]
[1738017314189,10.41938198,235.19,235.18,3.872e-05]
[1738017314387,4.2534,235.16,235.15,174.51290946]
[1738017323793,4.2534,235.16,235.15,168.03100946]
[1738017323990,4.2534,235.16,235.15,147.36680946]
[1738017326893,4.2534,235.16,235.15,140.91990946]
[1738017327999,4.2534,235.16,235.15,40.99667067]
[1738017330998,11.02122761,235.16,235.15,40.99667067]
[1738017343708,6.76782761,235.22,235.15,40.99667067]
[1738017344105,6.76782761,235.22,235.16,0.02714749]
[1738017345108,4.2529,235.19,235.16,0.02714749]
[1738017345511,6.76782761,235.22,235.16,0.02714749]
[1738017345708,4.2523,235.23,235.16,6.7949751]
[1738017346010,6.76782761,235.24,235.16,6.7949751]
[1738017346408,4.2525,235.22,235.17,4.2532]
[1738017347204,4.2526,235.21,235.17,4.2532]
[1738017348411,4.252,235.24,235.2,4.2527]
[1738017348613,6.76782761,235.26,235.18,6.76782761]
[1738017348808,6.76782761,235.3,235.2,6.76782761]
[1738017349004,6.76782761,235.36,235.26,6.76782761]
[1738017349209,6.76782761,235.32,235.27,1.3671]
[1738017349611,6.76782761,235.32,235.27,1.39592998]
[1738017350005,6.76782761,235.34,235.27,1.39592998]
[1738017350209,6.76782761,235.36,235.27,1.39592998]
[1738017350607,6.76782761,235.34,235.27,1.39592998]
[1738017351709,6.76782761,235.31,235.27,1.39592998]
[1738017353211,4.2513,235.29,235.27,1.39592998]
[1738017353410,6.76782761,235.31,235.27,1.39592998]
[1738017353814,4.2511,235.29,235.27,1.39592998]
[1738017354608,6.76782761,235.48,235.28,6.76782761]
[1738017354609,6.76782761,235.4,235.28,6.76782761]
[1738017354916,6.76782761,235.4,235.3,6.76782761]
[1738017355214,4.2496,235.38,235.32,4.27959876]
[1738017355515,4.2496,235.38,235.32,0.02919876]
[1738017355708,6.76782761,235.4,235.32,0.02919876]
[1738017356515,4.2498,235.37,235.32,0.02919876]
[1738017356915,6.76782761,235.4,235.32,0.02919876]
[1738017357217,4.2497,235.37,235.33,4.2503]
[1738017357415,6.76782761,235.4,235.32,0.02919876]
[1738017358613,6.76782761,235.37,235.32,0.02919876]
[1738017358813,6.76782761,235.37,235.28,2.8247]
[1738017359017,4.2501,235.35,235.32,0.02706184]
[1738017359814,6.76782761,235.4,235.32,0.02706184]
[1738017360117,6.76782761,235.4,235.28,2.8247]
[1738017360318,6.76782761,235.4,235.28,7.0759]
[1738017360619,6.76782761,235.4,235.32,0.02677575]
[1738017360816,6.76782761,235.37,235.32,0.02677575]
[1738017361020,6.76782761,235.37,235.29,4.251]
[1738017361220,6.76782761,235.37,235.32,0.02869692]
[1738017361719,4.2504,235.33,235.32,0.02869692]
[1738017366027,6.76782761,235.34,235.2,1.313]
[1738017366028,4.2518,235.26,235.21,4.2524]
[1738017366322,6.76782761,235.27,235.18,6.76782761]
[1738017366713,4.2526,235.21,235.18,6.76782761]
[1738017368623,0.02708196,235.22,235.18,6.76782761]
[1738017368823,4.2528,235.2,235.18,6.76782761]
[1738017370822,4.2531,235.18,235.17,0.02875002]
[1738017371823,4.27948196,235.22,235.17,0.02875002]
[1738017372127,0.02708196,235.22,235.19,6.76782761]
[1738017372927,0.02708196,235.22,235.2,4.2527]
[1738017376724,0.02708196,235.22,235.21,11.02032761]
[1738017377620,6.76782761,235.31,235.21,11.02032761]
[1738017377621,6.76782761,235.31,235.21,6.76782761]
[1738017377821,6.76782761,235.31,235.23,6.76782761]
[1738017378927,6.76782761,235.31,235.25,0.02866868]
[1738017379126,6.76782761,235.37,235.26,6.76782761]
[1738017379630,4.2501,235.35,235.29,0.03201588]
[1738017379830,6.76782761,235.37,235.29,0.03201588]
[1738017380827,4.2505,235.33,235.29,4.28311588]
[1738017381334,4.2505,235.32,235.29,0.03201588]
[1738017382234,6.76782761,235.37,235.29,0.03201588]
[1738017382434,4.2507,235.31,235.29,0.03201588]
[1738017385537,6.76782761,235.31,235.19,6.76782761]
[1738017385731,6.76782761,235.28,235.19,6.76782761]
[1738017386436,4.2519,235.25,235.2,4.2525]
[1738017386637,4.2519,235.25,235.21,0.02685161]
[1738017386833,4.2522,235.24,235.21,0.02685161]
[1738017388533,0.02827671,235.26,235.21,0.02685161]
[1738017388734,4.2523,235.22,235.21,0.02685161]
[1738017391638,8.19272761,235.25,235.15,40.99667067]
[1738017391838,2.7607,235.24,235.15,40.99667067]
[1738017392240,4.253,235.19,235.15,40.99667067]
[1738017392938,0.03088269,235.19,235.15,41.02910448]
[1738017393642,0.03088269,235.19,235.15,45.28260448]
[1738017393842,0.03088269,235.19,235.15,41.02910448]
[1738017395240,4.2534,235.16,235.15,41.02910448]
[1738017398733,4.28378269,235.19,235.15,41.02910448]
[1738017400941,4.2531,235.18,235.15,41.02910448]
[1738017401641,0.03088269,235.19,235.15,41.02910448]
[1738017401835,4.2534,235.16,235.15,41.02910448]
[1738017403641,4.2534,235.16,235.15,32.24550448]
[1738017404146,4.2534,235.16,235.15,27.92830448]
[1738017404346,4.2534,235.16,235.15,23.61110448]
[1738017404948,4.2534,235.16,234.92,27.78683048]
[1738017404949,4.255,235.08,235.0,6.76782761]